bitfinex/quotes_SOLUSD_20220228
["timestamp","ask_amount","ask_price","bid_price","bid_amount"]
[1646018917792,52.90965079,86.743,86.655,2.37849374]
[1646018917995,52.90965079,86.743,86.66,14.05]
[1646018918193,52.90965079,86.743,86.661,8.56051666]
[1646018918392,52.90965079,86.743,86.663,2.4369248]
[1646018918593,52.90965079,86.743,86.664,6.0]
[1646018924508,52.90965079,86.743,86.663,2.4369248]
[1646018925007,52.90965079,86.743,86.664,6.0]
[1646018930209,52.90965079,86.743,86.663,2.4369248]
[1646018930926,52.90965079,86.743,86.664,6.0]
[1646018931911,52.90965079,86.743,86.663,2.4369248]
[1646018932108,52.90965079,86.743,86.664,6.0]
[1646018932308,113.7,86.739,86.663,2.4369248]
[1646018932509,4.613,86.738,86.663,2.4369248]
[1646018932708,113.7,86.737,86.663,2.4369248]
[1646018932911,4.613,86.736,86.663,2.4369248]
[1646018933110,113.7,86.735,86.652,31.16925113]
[1646018933308,113.7,86.729,86.652,31.16925113]
[1646018933509,113.7,86.727,86.652,28.71137534]
[1646018933711,113.7,86.725,86.652,28.71137534]
[1646018934110,14.05,86.72,86.652,28.71137534]
[1646018934512,4.614,86.719,86.652,28.71137534]
[1646018935315,118.314,86.719,86.642,2.75782825]
[1646018935513,113.7,86.709,86.636,4.612]
[1646018935713,113.7,86.707,86.636,4.612]
[1646018935914,4.615,86.706,86.636,4.612]
[1646018936315,52.90965079,86.705,86.637,44.21001004]
[1646018936514,118.315,86.704,86.637,44.21001004]
[1646018936813,113.7,86.699,86.637,44.21001004]
[1646018938316,113.7,86.699,86.636,4.612]
[1646018938517,113.7,86.697,86.586,3.03274114]
[1646018938717,113.7,86.689,86.586,29.7293]
[1646018938919,1.80858419,86.688,86.587,2.88019901]
[1646018939118,4.616,86.687,86.587,2.88019901]
[1646018939317,113.7,86.685,86.588,43.05653023]
[1646018939619,1.62387781,86.682,86.589,2.28658085]
[1646018939818,113.7,86.679,86.59,6.0]
[1646018940019,113.7,86.679,86.589,2.28658085]
[1646018940220,18.21754677,86.678,86.589,2.28658085]
[1646018940419,113.7,86.669,86.589,2.28658085]
[1646018940619,113.7,86.667,86.589,2.28658085]
[1646018941423,73.43200417,86.668,86.59,6.0]
[1646018941621,23.9047,86.668,86.59,6.0]
[1646018942222,23.9047,86.668,86.59,14.34]
[1646018942519,22.6476,86.687,86.59,14.34]
[1646018942719,49.30747695,86.686,86.59,14.34]
[1646018943121,49.30747695,86.686,86.59,31.6626]
[1646018943420,49.30747695,86.686,86.591,2.28575341]
[1646018943620,49.30747695,86.686,86.592,6.0]
[1646018949153,49.30747695,86.686,86.592,14.04]
[1646018949351,17.5022,86.688,86.6,17.3206]
[1646018949547,17.5022,86.688,86.601,57.27405081]
[1646018949748,17.5022,86.688,86.602,2.88208968]
[1646018949948,17.5022,86.688,86.603,6.0]
[1646018950147,4.616,86.701,86.604,113.7]
[1646018950447,49.51173751,86.7,86.606,113.7]
[1646018950647,4.616,86.699,86.608,113.7]
[1646018950850,4.616,86.715,86.611,113.7]
[1646018951047,25.42646435,86.717,86.613,113.7]
[1646018951247,25.42646435,86.715,86.615,113.7]
[1646018951448,25.42646435,86.715,86.616,8.64712058]
[1646018951848,58.85552469,86.714,86.616,8.64712058]
[1646018952449,58.85552469,86.714,86.62,17.3167]
[1646018952649,25.42646435,86.715,86.621,51.33329561]
[1646018952848,25.42646435,86.715,86.622,27.58016474]
[1646018953053,25.42646435,86.715,86.623,8.81767371]
[1646018953651,17.14216726,86.718,86.624,113.7]
[1646018953851,65.7215,86.719,86.63,17.3146]
[1646018954053,65.7215,86.719,86.631,8.71470398]
[1646018954250,65.7215,86.719,86.632,47.5223]
[1646018954453,65.7215,86.719,86.633,8.82843052]
[1646018955250,65.7215,86.719,86.636,113.7]
[1646018955450,65.7215,86.719,86.639,2.28211538]
[1646018955651,65.7215,86.719,86.64,6.0]
[1646018960357,65.7215,86.719,86.64,13.27]
[1646018962360,48.7231,86.719,86.64,13.27]
[1646018962567,24.515,86.719,86.641,113.7]
[1646018962761,24.515,86.719,86.644,3.0716164]
[1646018962960,24.515,86.719,86.647,2.76445412]
[1646018963161,24.515,86.719,86.646,113.7]
[1646018963162,24.515,86.719,86.649,45.98234578]
[1646018963360,24.515,86.719,86.65,8.85836239]
[1646018967467,24.515,86.719,86.65,2.85836239]
[1646018968669,24.515,86.719,86.649,43.05653023]
[1646018970171,4.614,86.718,86.649,43.05653023]
[1646018970773,118.314,86.718,86.649,43.05653023]
[1646018971171,4.614,86.718,86.649,43.05653023]
[1646018971773,26.01704753,86.719,86.649,43.05653023]
[1646018973983,113.7,86.718,86.649,43.05653023]
[1646018974184,1.73501272,86.717,86.649,43.05653023]
[1646018974585,4.48180193,86.717,86.649,43.05653023]
[1646018974786,2.74678921,86.716,86.649,43.05653023]
[1646018975186,4.614,86.718,86.649,43.05653023]
[1646018975486,24.515,86.719,86.649,43.05653023]
[1646018977289,113.7,86.718,86.649,43.05653023]
[1646018978691,113.7,86.718,86.649,43.03544216]
[1646018979091,24.515,86.719,86.649,43.03544216]
[1646018979291,24.515,86.719,86.65,2.99488899]
[1646018980502,24.515,86.719,86.651,6.0]
[1646018980702,24.515,86.719,86.652,2.5930182]
[1646018980907,24.515,86.719,86.653,6.0]
[1646018986413,24.515,86.719,86.652,2.5930182]
[1646018987212,24.515,86.719,86.651,24.4339]
[1646018990416,115.10165473,86.718,86.651,24.4339]
[1646018990619,117.84844394,86.718,86.651,24.4339]
[1646018990816,4.614,86.717,86.651,24.4339]
[1646018991018,113.7,86.716,86.651,24.4339]
[1646018991315,116.44678921,86.716,86.651,24.4339]
[1646018991917,113.7,86.709,86.649,43.03544216]
[1646018992119,113.7,86.699,86.649,43.03544216]
[1646018992317,113.7,86.689,86.649,43.03544216]
[1646018992517,113.7,86.689,86.603,26.78279249]
[1646018992719,23.2506,86.689,86.604,8.81149746]
[1646018992917,116.44678921,86.688,86.604,8.81149746]
[1646018993318,2.74678921,86.687,86.604,8.81149746]
[1646018993519,113.7,86.685,86.605,54.99975727]
[1646018993718,113.7,86.685,86.606,9.0533358]
[1646018993921,113.7,86.685,86.606,3.0533358]
[1646018995420,43.01971372,86.686,86.606,3.0533358]
[1646018996021,43.01971372,86.686,86.607,6.0]
[1646018996621,23.2506,86.689,86.608,113.7]
[1646018996823,23.2506,86.689,86.609,9.10475624]
[1646018997022,23.2506,86.689,86.61,4.616]
[1646018997223,23.2506,86.689,86.611,6.0]
[1646018997521,23.2506,86.689,86.612,4.616]
[1646018997722,23.2506,86.689,86.613,29.6304]
[1646018997924,23.2506,86.689,86.614,7.29481809]
[1646018998124,23.2506,86.689,86.615,6.0]
[1646018999924,23.2506,86.689,86.616,2.74678921]
[1646019000124,23.2506,86.689,86.618,23.17328775]
[1646019000324,23.2506,86.689,86.619,8.87445971]
[1646019001630,23.2506,86.689,86.619,122.57445971]
[1646019001827,23.2506,86.689,86.62,3.06154754]
[1646019002028,23.2506,86.689,86.621,6.0]
[1646019003630,35.4500774,86.689,86.621,6.0]
[1646019004032,35.4500774,86.689,86.62,3.06154754]
[1646019006553,35.4500774,86.689,86.618,23.17328775]
[1646019006952,4.616,86.688,86.618,23.17328775]
[1646019008253,35.4500774,86.689,86.618,23.17328775]
[1646019008753,38.19686661,86.689,86.618,23.17328775]
[1646019010460,4.616,86.688,86.618,23.17328775]
[1646019010659,113.7,86.687,86.602,3.09912282]
[1646019010858,113.7,86.685,86.574,2.80696074]
[1646019011061,113.7,86.683,86.575,4.616]
[1646019011257,113.7,86.679,86.575,4.616]
[1646019011458,14.05,86.68,86.575,4.616]
[1646019011459,113.7,86.669,86.575,4.616]
[1646019011657,113.7,86.667,86.6,46.91286385]
[1646019012260,2.74678921,86.666,86.6,46.91286385]
[1646019015764,2.74678921,86.666,86.574,2.80696074]
[1646019016066,2.74678921,86.666,86.568,4.617]
[1646019016266,1.35820583,86.658,86.569,6.0]
[1646019016565,4.618,86.657,86.569,6.0]
[1646019016764,113.7,86.655,86.57,48.80540542]
[1646019016964,19.2833247,86.654,86.571,6.0]
[1646019017164,113.7,86.653,86.571,8.59928202]
[1646019017966,4.618,86.652,86.571,2.59928202]
[1646019018767,113.7,86.649,86.571,2.59928202]
[1646019018968,113.7,86.639,86.57,48.80540542]
[1646019019166,23.0748,86.638,86.57,48.80540542]
[1646019019366,1.71615868,86.637,86.57,48.80540542]
[1646019019766,14.05,86.63,86.57,48.80540542]
[1646019025772,113.7,86.629,86.57,48.80540542]
[1646019027177,113.7,86.629,86.568,4.617]
[1646019027571,1.52369092,86.626,86.517,2.90401301]
[1646019027772,1.52369092,86.626,86.518,8.61374548]
[1646019027971,115.30740446,86.624,86.518,8.61374548]
[1646019028172,15.60575904,86.61,86.518,8.61374548]
[1646019028372,19.2833247,86.608,86.52,2.96414054]
[1646019028571,19.2833247,86.608,86.521,6.0]
[1646019028971,113.7,86.607,86.521,6.0]
[1646019029773,113.7,86.607,86.521,8.97768142]
[1646019030072,122.68,86.607,86.521,8.97768142]
[1646019030273,113.7,86.605,86.521,8.97768142]
[1646019030672,2.74678921,86.604,86.521,8.97768142]
[1646019030873,14.05,86.59,86.521,8.97768142]
[1646019031174,44.64257682,86.589,86.521,8.97768142]
[1646019031973,113.7,86.588,86.501,2.5120444]
[1646019032175,113.7,86.586,86.464,2.8882008]
[1646019032374,113.7,86.584,86.465,2.65916722]
[1646019032581,113.7,86.569,86.465,2.65916722]
[1646019032777,47.1291,86.568,86.465,2.65916722]
[1646019032981,23.53437816,86.567,86.467,116.11752581]
[1646019033177,23.53437816,86.567,86.468,2.40876804]
[1646019033376,23.53437816,86.567,86.469,6.0]
[1646019033776,2.74678921,86.566,86.469,6.0]
[1646019033977,45.8418,86.565,86.469,6.0]
[1646019034175,14.05,86.56,86.47,17.3477]
[1646019034378,45.8418,86.565,86.471,8.73755264]
[1646019035577,2.74678921,86.564,86.48,17.3449]
[1646019035779,2.74678921,86.564,86.482,22.0216581]
[1646019035980,2.74678921,86.564,86.483,8.63563135]
[1646019036981,45.8418,86.565,86.483,15.28563135]
[1646019037178,2.74678921,86.575,86.491,116.13557451]
[1646019037378,14.05,86.58,86.494,3.12485529]
[1646019037579,4.622,86.596,86.496,113.7]
[1646019037777,4.622,86.596,86.498,113.7]
[1646019037979,59.00035819,86.595,86.499,67.30618318]
[1646019038177,59.00035819,86.595,86.5,3.02378406]
[1646019038379,61.7471474,86.595,86.501,6.0]
[1646019038578,61.7471474,86.595,86.51,17.34]
[1646019038779,61.7471474,86.595,86.512,113.7]
[1646019038980,59.00035819,86.595,86.513,28.36911647]
[1646019039181,59.00035819,86.595,86.514,2.89027965]
[1646019039380,59.00035819,86.595,86.515,6.0]
[1646019040382,4.621,86.608,86.52,17.3378]
[1646019040582,31.749,86.61,86.52,17.3378]
[1646019040583,36.369,86.61,86.521,8.26301651]
[1646019040783,14.05,86.61,86.522,113.7]
[1646019040984,2.74678921,86.629,86.524,113.7]
[1646019041184,2.74678921,86.629,86.526,113.7]
[1646019041490,52.82322619,86.638,86.532,2.43005052]
[1646019041684,52.82322619,86.638,86.535,2.565103]
[1646019041883,52.82322619,86.638,86.538,2.83296102]
[1646019042086,52.82322619,86.638,86.54,36.21260699]
[1646019042285,52.82322619,86.638,86.542,2.96952782]
[1646019042484,52.82322619,86.638,86.56,17.3302]
[1646019042683,52.82322619,86.638,86.562,47.06538903]
[1646019042883,52.82322619,86.638,86.563,8.3701861]
[1646019043084,2.74678921,86.637,86.563,8.3701861]
[1646019043289,2.74678921,86.637,86.563,2.3701861]
[1646019043483,14.05,86.64,86.564,6.0]
[1646019043685,14.05,86.64,86.564,14.12]
[1646019044884,14.05,86.64,86.57,17.3278]
[1646019045086,14.05,86.64,86.571,8.82462626]
[1646019045484,16.79678921,86.64,86.572,24.5176]
[1646019045685,16.79678921,86.64,86.573,8.73473785]
[1646019046785,16.79678921,86.64,86.573,2.73473785]
[1646019047390,16.79678921,86.64,86.574,6.0]
[1646019047590,16.79678921,86.64,86.575,33.38366447]
[1646019047890,16.79678921,86.64,86.576,2.63143829]
[1646019048495,2.74678921,86.64,86.576,2.63143829]
[1646019049091,16.79678921,86.64,86.576,2.63143829]
[1646019052092,16.79678921,86.64,86.575,33.38366447]
[1646019052294,43.27876126,86.64,86.575,33.38366447]
[1646019055118,113.7,86.639,86.575,33.38366447]
[1646019055522,2.74678921,86.638,86.575,33.38366447]
[1646019059222,14.05,86.64,86.575,33.38366447]
[1646019059424,68.90375738,86.643,86.576,3.08100805]
[1646019060025,68.90375738,86.643,86.577,6.0]
[1646019061026,22.6644,86.643,86.577,6.0]
[1646019061224,27.12028921,86.668,86.577,6.0]
[1646019061425,14.05,86.66,86.577,6.0]
[1646019062127,57.31452528,86.651,86.577,6.0]
[1646019062326,27.12028921,86.668,86.577,6.0]
[1646019062532,27.12028921,86.668,86.58,17.3258]
[1646019062728,27.12028921,86.668,86.581,9.09931001]
[1646019062929,27.12028921,86.668,86.582,113.7]
[1646019063128,27.12028921,86.668,86.583,2.63621719]
[1646019063328,2.74678921,86.668,86.585,113.7]
[1646019063528,14.05,86.68,86.59,17.3239]
[1646019063727,31.4228,86.68,86.591,53.15096253]
[1646019063931,31.4228,86.68,86.592,2.52256552]
[1646019064132,14.05,86.68,86.594,113.7]
[1646019064328,25.44197205,86.708,86.596,113.7]
[1646019064329,2.74678921,86.704,86.596,113.7]
[1646019064529,2.74678921,86.714,86.598,113.7]
[1646019064730,2.74678921,86.714,86.6,113.7]
[1646019064928,24.8878,86.719,86.602,113.7]
[1646019065132,24.8878,86.719,86.601,9.11334404]
[1646019065133,50.2315405,86.718,86.63,17.3141]
[1646019065329,52.97832971,86.718,86.631,41.66968771]
[1646019065527,52.97832971,86.718,86.632,2.59360319]
[1646019065730,52.97832971,86.718,86.633,6.0]
[1646019066028,2.74678921,86.717,86.635,2.90836818]
[1646019066228,2.74678921,86.717,86.636,6.0]
[1646019066428,2.74678921,86.717,86.641,2.71552172]
[1646019066627,14.05,86.72,86.642,6.0]
[1646019067229,2.74678921,86.719,86.636,6.0]
[1646019067528,56.62063392,86.718,86.637,6.0]
[1646019067731,56.62063392,86.718,86.635,2.77450232]
[1646019067930,2.74678921,86.717,86.636,6.0]
[1646019068128,2.74678921,86.717,86.635,2.77450232]
[1646019068530,23.3326,86.716,86.635,2.77450232]
[1646019068737,23.3326,86.716,86.636,6.0]
[1646019068931,2.74678921,86.715,86.636,6.0]
[1646019069130,2.74678921,86.715,86.635,2.77450232]
[1646019069330,2.74678921,86.715,86.636,6.0]
[1646019069730,2.74678921,86.715,86.64,17.314]
[1646019069932,23.3326,86.716,86.641,8.46922756]
[1646019070334,14.05,86.72,86.641,8.46922756]
[1646019070530,2.74678921,86.734,86.641,8.46922756]
[1646019070731,2.74678921,86.716,86.651,113.7]
[1646019070932,1.81210082,86.782,86.642,2.74678921]
[1646019070933,14.05,86.76,86.653,113.7]
[1646019071132,4.613,86.76,86.655,113.7]
[1646019071333,4.613,86.76,86.657,113.7]
[1646019071334,14.05,86.76,86.657,113.7]
[1646019071531,48.4942,86.769,86.658,2.26807339]
[1646019071732,48.4942,86.769,86.671,113.7]
[1646019071931,48.4942,86.769,86.673,113.7]
[1646019072133,48.4942,86.769,86.676,2.25696738]
[1646019072333,93.72768821,86.769,86.679,2.34928301]
[1646019072533,93.72768821,86.769,86.681,2.2755728]
[1646019072735,93.72768821,86.769,86.682,6.0]
[1646019072936,14.05,86.77,86.683,113.7]
[1646019073135,1.52455803,86.809,86.691,3.04221306]
[1646019073334,73.86853913,86.846,86.691,3.04221306]
[1646019073335,17.6316,86.844,86.701,113.7]
[1646019073534,79.1421,86.848,86.703,113.7]
[1646019073735,96.3709,86.848,86.705,113.7]
[1646019073934,96.3709,86.848,86.704,56.25786406]
[1646019073935,54.93069141,86.847,86.707,113.7]
[1646019074135,54.93069141,86.847,86.706,53.8089009]
[1646019074136,54.93069141,86.847,86.721,113.7]
[1646019074434,54.93069141,86.847,86.751,47.69245609]
[1646019074635,54.93069141,86.847,86.753,3.0606405]
[1646019074834,46.6253,86.866,86.754,6.0]
[1646019075033,1.52150682,86.881,86.754,6.0]
[1646019075034,1.52150682,86.881,86.754,39.03909403]
[1646019075233,1.52150682,86.881,86.755,36.10336278]
[1646019075434,4.607,86.875,86.756,8.45445261]
[1646019075635,4.607,86.875,86.76,14.05]
[1646019075835,55.4975773,86.874,86.761,6.0]
[1646019076034,4.607,86.873,86.79,17.284]
[1646019076235,4.607,86.873,86.791,42.27938926]
[1646019076436,4.607,86.873,86.792,2.60336329]
[1646019076638,55.4975773,86.874,86.793,6.0]
[1646019077239,4.606,86.873,86.793,6.0]
[1646019077435,4.606,86.873,86.8,17.2831]
[1646019077635,4.606,86.873,86.801,6.0]
[1646019077837,4.606,86.873,86.801,8.68859224]
[1646019078034,6.25055201,86.873,86.801,6.0]
[1646019078239,6.25055201,86.873,86.792,6.0]
[1646019078435,2.74678921,86.872,86.791,33.38366447]
[1646019078637,4.606,86.871,86.791,33.38366447]
[1646019078834,14.05,86.87,86.791,33.38366447]
[1646019079035,6.05574588,86.869,86.791,33.38366447]
[1646019079236,17.2918,86.86,86.791,33.38366447]
[1646019079437,18.95128862,86.859,86.791,33.38366447]
[1646019079637,1.46973062,86.858,86.791,33.38366447]
[1646019079836,4.606,86.857,86.791,33.38366447]
[1646019080238,4.607,86.858,86.792,2.2884052]
[1646019080437,2.74678921,86.89,86.793,6.0]
[1646019080637,49.8928,86.927,86.795,2.5935305]
[1646019080838,49.8928,86.927,86.794,113.7]
[1646019080839,49.8928,86.927,86.81,14.05]
[1646019081037,1.49431977,86.926,86.812,3.06917899]
[1646019081237,57.92766326,86.924,86.814,44.78938055]
[1646019081436,6.36261857,86.923,86.815,8.38943344]
[1646019082037,17.2791,86.92,86.82,17.2773]
[1646019082237,1.70583647,86.919,86.821,8.30658401]
[1646019082436,4.45262568,86.919,86.821,8.30658401]
[1646019082636,2.74678921,86.919,86.821,8.30658401]
[1646019082836,17.2791,86.92,86.821,6.0]
[1646019083037,17.2791,86.92,86.816,6.0]
[1646019083440,57.92766326,86.924,86.83,17.2765]
[1646019083637,57.92766326,86.924,86.831,41.75701562]
[1646019083838,57.92766326,86.924,86.832,2.66058616]
[1646019084038,57.92766326,86.924,86.833,6.0]
[1646019084241,57.92766326,86.924,86.833,8.69987228]
[1646019084839,4.604,86.923,86.833,8.69987228]
[1646019085041,57.92766326,86.924,86.833,8.69987228]
[1646019085440,57.92766326,86.924,86.84,17.2748]
[1646019085643,57.92766326,86.924,86.841,8.83012114]
[1646019086044,1.72311468,86.923,86.841,6.0]
[1646019086243,4.603,86.922,86.841,6.0]
[1646019086442,4.603,86.922,86.833,6.0]
[1646019086843,17.2787,86.92,86.833,6.0]
[1646019087246,2.74678921,86.939,86.841,113.7]
[1646019087444,117.203,86.984,86.844,2.47821551]
[1646019087644,2.74678921,86.974,86.845,6.0]
[1646019087944,1.8346529,86.983,86.845,36.36855815]
[1646019088145,54.55401291,86.962,86.846,47.33391976]
[1646019088345,54.55401291,86.962,86.86,14.05]
[1646019088549,54.55401291,86.962,86.861,39.38366447]
[1646019088753,54.55401291,86.962,86.87,17.2667]
[1646019089051,54.55401291,86.962,86.871,8.53784849]
[1646019089652,54.55401291,86.962,86.88,17.2668]
[1646019089851,54.55401291,86.962,86.882,44.78938055]
[1646019090053,54.55401291,86.962,86.883,9.01973885]
[1646019090951,54.55401291,86.962,86.883,6.0]
[1646019091153,1.46311679,86.961,86.883,6.0]
[1646019091350,17.2705,86.96,86.883,6.0]
[1646019091750,4.602,86.959,86.883,6.0]
[1646019091951,17.2705,86.96,86.883,6.0]
[1646019092354,6.31512115,86.959,86.883,6.0]
[1646019092551,1.71412115,86.959,86.883,6.0]
[1646019092752,112.6,86.984,86.895,7.0]
[1646019092953,112.6,86.984,86.9,14.05]
[1646019093152,112.6,86.984,86.901,8.74443001]
[1646019093759,112.6,86.984,86.902,33.38366447]
[1646019093760,54.13739715,86.962,86.902,33.38366447]
[1646019093952,54.13739715,86.962,86.903,8.90391038]
[1646019094551,54.13739715,86.962,86.91,17.2606]
[1646019094752,54.13739715,86.962,86.911,6.0]
[1646019095153,2.74678921,86.962,86.911,6.0]
[1646019095351,2.74678921,86.962,86.912,2.77044564]
[1646019095554,112.6,86.984,86.913,6.0]
[1646019095974,115.52235116,86.983,86.91,14.05]
[1646019096277,112.6,86.984,86.9,14.05]
[1646019096278,2.74678921,86.962,86.9,14.05]
[1646019096474,2.74678921,86.962,86.89,14.05]
[1646019096677,112.6,86.984,86.89,14.05]
[1646019096874,56.28469877,86.962,86.891,55.06775234]
[1646019097075,56.28469877,86.962,86.892,2.29550726]
[1646019097275,56.28469877,86.962,86.893,6.0]
[1646019099077,112.6,86.984,86.901,113.7]
[1646019099278,112.6,87.021,86.91,14.05]
[1646019099477,112.6,87.021,86.911,119.7]
[1646019099679,112.6,87.021,86.912,2.78602505]
[1646019099878,112.6,87.021,86.914,113.7]
[1646019100077,57.02435589,86.981,86.92,17.2553]
[1646019100278,57.02435589,86.981,86.93,14.05]
[1646019100578,130.0461,87.021,86.932,2.43782028]
[1646019100778,1.56747941,87.02,86.933,6.0]
[1646019101178,4.6,87.019,86.933,6.0]
[1646019101580,57.97246728,86.971,86.933,6.0]
[1646019101780,4.6,87.017,86.933,6.0]
[1646019101979,6.22295246,87.017,86.933,6.0]
[1646019102179,119.92295246,87.017,86.933,6.0]
[1646019102379,1.75972306,87.016,86.933,6.0]
[1646019102582,4.6,87.015,86.932,6.0]
[1646019102780,23.116,87.014,86.932,6.0]
[1646019102979,47.0083999,86.983,86.932,8.67731096]
[1646019103180,4.6,87.013,86.94,17.2563]
[1646019103379,23.116,87.014,86.943,40.0]
[1646019103582,1.70035949,87.044,86.944,9.09922398]
[1646019103780,2.74678921,87.043,86.944,9.09922398]
[1646019103982,4.598,87.041,86.944,9.09922398]
[1646019104181,48.97723835,87.02,86.945,21.74547663]
[1646019104383,48.97723835,87.02,86.946,8.64812618]
[1646019104583,48.97723835,87.02,86.96,17.2526]
[1646019104782,48.97723835,87.02,86.961,50.2705669]
[1646019105182,48.97723835,87.02,86.961,6.0]
[1646019105383,4.598,87.019,86.951,6.0]
[1646019105582,4.598,87.019,86.941,6.0]
[1646019105783,17.158,87.024,86.935,6.0]
[1646019105986,24.4493,87.069,86.951,113.7]
[1646019106183,24.4493,87.069,86.95,14.05]
[1646019106184,17.3868,87.081,86.954,2.83356954]
[1646019106384,17.3868,87.081,86.956,113.7]
[1646019106585,17.3868,87.081,86.971,113.7]
[1646019106784,48.47389541,87.076,86.981,113.7]
[1646019106983,48.47389541,87.076,86.991,113.7]
[1646019107283,48.47389541,87.076,87.0,17.2426]
[1646019107484,48.47389541,87.076,87.001,8.94531914]
[1646019107683,4.597,87.089,87.002,113.7]
[1646019107884,246.3669,87.14,87.002,113.7]
[1646019107885,0.00768079,87.042,87.004,113.7]
[1646019108085,0.00768079,87.042,87.005,2.99417986]
[1646019108383,0.00768079,87.042,87.008,2.80313618]
[1646019108584,0.00768079,87.042,87.03,17.2378]
[1646019108785,0.00768079,87.042,87.031,6.0]
[1646019109785,44.33952834,87.076,87.031,6.0]
[1646019110785,44.33952834,87.076,87.03,31.2878]
[1646019110992,44.33952834,87.076,87.0,57.4644]
[1646019110993,44.33952834,87.076,87.0,14.05]
[1646019111187,7.34178921,87.075,87.0,14.05]
[1646019111390,2.74678921,87.075,87.0,14.05]
[1646019111587,2.74678921,87.074,87.0,14.05]
[1646019111986,2.74678921,87.074,87.001,52.02973402]
[1646019112187,2.74678921,87.074,87.002,6.0]
[1646019113088,2.74678921,87.074,87.0,14.05]
[1646019113287,4.595,87.073,87.001,6.0]
[1646019113488,4.595,87.073,86.99,17.2457]
[1646019113489,4.595,87.073,86.991,6.0]
[1646019113787,2.74678921,87.072,86.991,6.0]
[1646019113989,17.2488,87.07,86.992,54.56356706]
[1646019114188,6.18525874,87.069,86.993,6.0]
[1646019114391,8.93204795,87.069,86.993,6.0]
[1646019114589,2.74678921,87.068,86.993,6.0]
[1646019114888,4.596,87.067,86.993,6.0]
[1646019115292,2.74678921,87.066,86.993,6.0]
[1646019118492,2.74678921,87.066,86.99,14.05]
[1646019118693,2.74678921,87.066,86.98,17.2485]
[1646019118893,113.7,87.059,86.981,6.0]
[1646019119093,113.7,87.057,86.962,6.0]
[1646019119292,1.53857527,87.056,86.962,6.0]
[1646019119496,113.7,87.055,86.963,59.318371]
[1646019119692,1.52375831,87.054,86.964,6.0]
[1646019120093,2.74678921,87.053,86.964,6.0]
[1646019120393,4.597,87.052,86.964,6.0]
[1646019120594,4.597,87.052,86.963,59.318371]
[1646019120895,2.74678921,87.051,86.963,59.318371]
[1646019121793,2.74678921,87.051,86.964,6.0]
[1646019122797,113.7,87.049,86.964,6.0]
[1646019122999,113.7,87.047,86.961,6.0]
[1646019123201,113.7,87.045,86.942,6.0]
[1646019123399,113.7,87.043,86.934,6.0]
[1646019123601,113.7,87.041,86.93,14.05]
[1646019123803,113.7,87.039,86.931,45.79765735]
[1646019124003,113.7,87.009,86.931,45.79765735]
[1646019124202,119.91687416,87.008,86.921,2.58651234]
[1646019124401,1.75862978,87.007,86.921,2.58651234]
[1646019124605,4.599,87.006,86.921,2.58651234]
[1646019124903,4.599,87.006,86.922,6.0]
[1646019125103,27.44461943,87.005,86.922,55.16998748]
[1646019125303,6.45334538,87.004,86.922,55.16998748]
[1646019125704,6.45334538,87.004,86.922,49.16998748]
[1646019126510,1.85434538,87.004,86.922,49.16998748]
[1646019127911,1.85434538,87.004,86.923,6.0]
[1646019128912,4.599,87.003,86.923,6.0]
[1646019129515,1.85434538,87.004,86.923,6.0]
[1646019130132,115.55434538,87.004,86.923,6.0]
[1646019130431,1.47870155,87.003,86.923,6.0]
[1646019131132,113.7,87.001,86.923,6.0]
[1646019131331,1.46516,87.0,86.922,49.16998748]
[1646019131532,4.21194921,87.0,86.922,49.16998748]
[1646019131932,4.21194921,87.0,86.9,17.32653594]
[1646019132133,22.44461943,87.005,86.887,17.32653594]